bitfinex/quotes_SOLUSD_20250401
["timestamp","ask_amount","ask_price","bid_price","bid_amount"]
[1743518484473,0.31432314,126.13,126.09,0.063]
[1743518484678,0.17216157,126.13,126.09,0.063]
[1743518484878,0.03,126.13,126.09,0.063]
[1743518488209,24.62494361,126.13,126.09,0.063]
[1743518488582,0.17216157,126.13,126.09,0.063]
[1743518490402,0.03,126.13,126.09,0.063]
[1743518491787,0.31432314,126.13,126.09,0.063]
[1743518491993,24.62494361,126.13,126.09,0.063]
[1743518492206,0.17216157,126.13,126.09,0.063]
[1743518492410,0.03,126.13,126.09,0.063]
[1743518493223,0.14216157,126.11,126.09,0.063]
[1743518497023,0.31432314,126.13,126.09,0.063]
[1743518497193,0.17216157,126.13,126.09,0.063]
[1743518497805,0.03,126.13,126.09,0.063]
[1743518499115,0.03,126.13,126.09,18.71264886]
[1743518499620,0.03,126.13,126.1,27.7557]
[1743518500095,0.03,126.19,126.13,18.64964886]
[1743518500602,0.03,126.19,126.13,27.06964886]
[1743518501191,0.03,126.19,126.14,1.5547]
[1743518501613,0.03,126.19,126.15,27.7446]
[1743518504617,0.03,126.19,126.15,7.927]
[1743518505017,0.03,126.19,126.14,7.9273]
[1743518505911,7.9545,126.19,126.13,7.9283]
[1743518506531,0.14216157,126.18,126.13,7.9283]
[1743518507538,24.73710518,126.18,126.13,7.9283]
[1743518507701,0.28432314,126.18,126.13,7.9283]
[1743518508420,32.66230518,126.18,126.12,7.9286]
[1743518508799,32.66230518,126.18,126.12,27.7509]
[1743518508800,0.14216157,126.18,126.12,27.7509]
[1743518508999,0.03,126.19,126.12,27.7509]
[1743518510001,0.03,126.19,126.12,19.8223]
[1743518510203,24.76710518,126.19,126.12,19.8223]
[1743518510609,0.14216157,126.17,126.12,19.8223]
[1743518511022,0.17216157,126.19,126.12,19.8223]
[1743518511427,24.76710518,126.19,126.12,19.8223]
[1743518512331,24.76710518,126.19,126.11,7.9295]
[1743518512332,0.14216157,126.17,126.11,7.9295]
[1743518512630,24.59494361,126.15,126.11,7.9295]
[1743518513111,0.14216157,126.14,126.09,14.3482]
[1743518513307,0.14216157,126.14,126.09,7.9936]
[1743518514016,0.14216157,126.15,126.09,27.8207]
[1743518514209,24.45278204,126.18,126.09,0.063]
[1743518514414,0.28432314,126.18,126.1,26.53974886]
[1743518514622,0.28432314,126.18,126.11,8.42]
[1743518515131,0.14216157,126.18,126.11,8.42]
[1743518515802,0.14216157,126.17,126.11,8.42]
[1743518516205,0.14216157,126.17,126.12,7.9289]
[1743518516933,24.73710518,126.16,126.12,7.9289]
[1743518517340,0.28432314,126.16,126.12,7.9289]
[1743518517633,0.28432314,126.17,126.12,7.9289]
[1743518517826,0.14216157,126.17,126.12,27.7512]
[1743518518035,24.45278204,126.18,126.12,27.7512]
[1743518518326,0.14216157,126.16,126.11,7.9295]
[1743518518532,0.03,126.19,126.11,27.7534]
[1743518518742,0.31432314,126.19,126.11,27.7534]
[1743518519032,0.31432314,126.19,126.11,67.4013]
[1743518520637,0.17216157,126.19,126.12,18.64964886]
[1743518520823,0.03,126.19,126.13,1.6086]
[1743518521132,0.03,126.19,126.13,10.0286]
[1743518522117,0.17216157,126.19,126.13,10.0286]
[1743518522316,0.17216157,126.19,126.14,27.7468]
[1743518523010,0.03,126.19,126.14,67.3852]
[1743518523744,0.03,126.19,126.14,27.7468]
[1743518524120,0.03,126.19,126.14,67.3852]
[1743518524321,0.03,126.19,126.16,27.7425]
[1743518525438,0.17216157,126.19,126.16,7.9264]
[1743518525734,0.14216157,126.18,126.13,7.9283]
[1743518525937,24.59494361,126.17,126.13,7.9283]
[1743518526123,0.14216157,126.16,126.13,7.9283]
[1743518526307,0.14216157,126.16,126.11,27.7519]
[1743518527715,0.14216157,126.15,126.11,27.7519]
[1743518527916,0.14216157,126.15,126.11,7.9295]
[1743518528125,0.14216157,126.14,126.11,7.9295]
[1743518528414,0.14216157,126.14,126.1,7.9302]
[1743518528625,0.14216157,126.14,126.13,0.063]
[1743518530237,0.14216157,126.16,126.13,0.063]
[1743518530612,0.14216157,126.17,126.13,0.063]
[1743518531816,0.14216157,126.18,126.13,0.063]
[1743518532026,0.03,126.19,126.13,0.063]
[1743518532223,0.03,126.19,126.13,24.92511302]
[1743518532425,0.03,126.19,126.14,1.596]
[1743518532650,0.03,126.19,126.15,27.7446]
[1743518533160,0.03,126.19,126.15,7.927]
[1743518533323,0.14216157,126.18,126.15,7.927]
[1743518533719,0.14216157,126.17,126.14,7.9274]
[1743518533917,0.14216157,126.16,126.14,7.9274]
[1743518534720,0.28432314,126.18,126.13,7.9913]
[1743518536153,0.17216157,126.19,126.13,7.9913]
[1743518537329,32.54954361,126.19,126.13,7.9913]
[1743518537533,0.03,126.19,126.13,0.063]
[1743518537733,0.14216157,126.18,126.13,0.063]
[1743518538130,0.28432314,126.18,126.13,0.063]
[1743518538647,0.03,126.19,126.13,0.063]
[1743518539043,0.03,126.19,126.13,1.7035]
[1743518541732,0.03,126.19,126.14,7.9276]
[1743518542537,0.03,126.19,126.14,27.7468]
[1743518543152,0.03,126.19,126.15,25.29164886]
[1743518543779,0.03,126.19,126.15,6.642]
[1743518544053,0.03,126.19,126.16,7.9264]
[1743518544850,0.03,126.19,126.16,27.7425]
[1743518545946,0.03,126.19,126.16,7.9264]
[1743518546555,24.62494361,126.19,126.15,7.9268]
[1743518547163,24.62494361,126.19,126.14,7.9272]
[1743518548377,0.03,126.19,126.13,7.9913]
[1743518548586,0.14216157,126.18,126.13,7.9913]
[1743518551888,0.03,126.19,126.13,27.8121]
[1743518553863,24.48278204,126.19,126.13,27.8121]
[1743518554274,0.03,126.19,126.13,27.8121]
[1743518554660,0.17216157,126.19,126.13,27.8121]
[1743518555164,8.09666157,126.19,126.13,27.8121]
[1743518557457,0.17216157,126.19,126.13,27.8121]
[1743518559172,0.03,126.19,126.13,67.4537]
[1743518559375,0.03,126.19,126.14,18.64964886]
[1743518560284,0.03,126.19,126.14,100.34954886]
[1743518560594,6.51443764,126.25,126.19,45.28384886]
[1743518560758,0.03,126.26,126.19,45.28384886]
[1743518560958,0.03,126.26,126.2,7.9239]
[1743518561186,0.03,126.26,126.2,27.7337]
[1743518561889,6.51467376,126.26,126.2,27.7337]
[1743518563983,0.03,126.26,126.2,27.7337]
[1743518564976,24.48278204,126.26,126.2,27.7337]
[1743518565177,0.14216157,126.25,126.2,7.9239]
[1743518566980,0.17216157,126.26,126.2,27.7337]
[1743518567997,0.03,126.26,126.2,27.7337]
[1743518568302,0.03,126.26,126.23,18.64964886]
[1743518568490,0.03,126.26,126.23,100.34954886]
[1743518568684,0.03,126.26,126.23,108.74954886]
[1743518569088,0.03,126.26,126.24,6.3606]
[1743518569284,1.74486157,126.32,126.24,6.3606]
[1743518569285,0.03,126.32,126.25,18.64964886]
[1743518569613,0.03,126.32,126.25,100.34954886]
[1743518569982,0.03,126.32,126.29,20.17014886]
[1743518570290,0.03,126.34,126.32,18.64964886]
[1743518570493,0.03,126.39,126.32,100.34954886]
[1743518572285,0.03,126.39,126.33,7.9157]
[1743518572488,39.24911034,126.39,126.32,98.016]
[1743518572799,39.07694877,126.38,126.32,81.6999]
[1743518572981,39.21911034,126.37,126.32,81.6999]
[1743518573190,0.14216157,126.37,126.32,81.6999]
[1743518573510,0.14216157,126.37,126.3,14.4301]
[1743518573681,0.14216157,126.37,126.3,6.5128]
[1743518574097,0.14216157,126.37,126.3,14.4303]
[1743518574302,8.05566157,126.37,126.3,6.5128]
[1743518574503,46.40771034,126.37,126.3,6.5128]
[1743518574714,0.14216157,126.35,126.29,16.3182]
[1743518575098,7.33076157,126.37,126.29,16.3182]
[1743518575282,46.40771034,126.37,126.29,16.3182]
[1743518575701,46.07891034,126.37,126.29,16.3182]
[1743518575913,37.79504877,126.37,126.29,16.3182]
[1743518576702,0.28432314,126.38,126.29,16.3182]
[1743518576906,7.9132,126.37,126.29,16.3182]
[1743518577088,39.36127191,126.36,126.29,8.4]
[1743518577288,39.07694877,126.35,126.28,81.6999]
[1743518578304,39.36127191,126.33,126.25,218.2999]
[1743518578512,39.36127191,126.33,126.25,226.2206]
[1743518578692,7.9164,126.32,126.25,226.2206]
[1743518578895,8.20022314,126.33,126.25,226.2206]
[1743518579293,46.99234877,126.34,126.26,18.64964886]
[1743518579612,8.4,126.35,126.26,18.64964886]
[1743518579807,7.9141,126.36,126.26,18.64964886]
[1743518580112,7.9141,126.36,126.26,100.34954886]
[1743518580286,7.9141,126.36,126.29,20.0]
[1743518580482,0.28432314,126.38,126.3,25.26104886]
[1743518580702,17.9031,126.39,126.31,7.917]
[1743518580990,0.03,126.39,126.32,18.64964886]
[1743518581481,0.03,126.39,126.33,0.28432314]
[1743518581681,0.03,126.39,126.35,18.64964886]
[1743518582284,0.03,126.39,126.36,6.1185]
[1743518582792,0.03,126.39,126.37,26.56284886]
[1743518583498,0.0001,126.39,126.37,244.86274886]
[1743518583701,0.03,126.46,126.37,244.86274886]
[1743518583702,0.03,126.46,126.41,18.64964886]
[1743518583905,0.03,126.46,126.41,27.04964886]
[1743518584110,0.03,126.46,126.41,8.4]
[1743518584285,0.03,126.46,126.4,20.0]
[1743518585004,39.07694877,126.45,126.39,8.4]
[1743518585302,0.31432314,126.46,126.38,7.912]
[1743518586111,39.39127191,126.46,126.38,7.912]
[1743518586309,0.31432314,126.46,126.38,7.912]
[1743518586516,0.03,126.46,126.39,18.64964886]
[1743518586714,0.03,126.46,126.4,0.28432314]
[1743518586894,0.03,126.46,126.42,18.64964886]
[1743518587093,0.03,126.46,126.42,100.34954886]
[1743518588117,0.03,126.46,126.42,81.6999]
[1743518589007,0.03,126.46,126.43,7.9095]
[1743518589597,0.03,126.46,126.44,6.5311]
[1743518590191,0.0001,126.46,126.45,18.64964886]
[1743518590391,39.10694877,126.5,126.45,81.6999]
[1743518590713,0.03,126.5,126.45,81.6999]
[1743518591015,0.03,126.5,126.44,6.5311]
[1743518591214,0.03,126.5,126.45,7.908]
[1743518592011,0.03,126.5,126.45,27.6786]
[1743518593713,0.03,126.5,126.45,7.908]
[1743518595801,0.03,126.5,126.45,27.6786]
[1743518595999,0.03,126.5,126.46,27.02964886]
[1743518597309,0.03,126.5,126.47,27.6745]
[1743518597923,0.03,126.5,126.48,18.64964886]
[1743518598846,0.03,126.5,126.48,100.34954886]
[1743518599510,0.03,126.5,126.49,26.55534886]
[1743518600530,0.03,126.5,126.49,7.9057]
[1743518600834,0.03,126.5,126.49,108.25524886]
[1743518602533,8.37688146,126.59,126.5,18.64964886]
[1743518602534,39.07694877,126.57,126.5,18.64964886]
[1743518602744,39.07694877,126.57,126.52,18.64964886]
[1743518602932,40.76744877,126.59,126.52,100.34954886]
[1743518603112,1.6905,126.59,126.52,100.34954886]
[1743518603734,39.07694877,126.58,126.52,100.34954886]
[1743518603932,39.07694877,126.58,126.52,81.6999]
[1743518604140,9.59,126.59,126.52,81.6999]
[1743518604141,39.07694877,126.57,126.52,81.6999]
[1743518604441,1.6905,126.59,126.52,81.6999]
[1743518604627,40.76744877,126.59,126.52,81.6999]
[1743518604815,39.07694877,126.57,126.53,7.9032]
[1743518605136,39.07694877,126.58,126.53,7.9032]
[1743518605439,40.76744877,126.59,126.53,7.9032]
[1743518605934,26.04737412,126.59,126.53,27.6613]
[1743518607247,0.03,126.59,126.53,27.6613]
[1743518607618,0.03,126.59,126.54,18.64964886]
[1743518607840,0.03,126.59,126.54,236.94954886]
[1743518608040,0.03,126.59,126.54,218.2999]
[1743518608216,0.03,126.59,126.55,18.64964886]
[1743518608416,0.03,126.59,126.55,100.34954886]
[1743518608920,0.03,126.59,126.56,7.9013]
[1743518609520,0.03,126.59,126.56,27.6547]
[1743518612028,0.03,126.59,126.56,7.9013]
[1743518612333,0.03,126.59,126.55,81.6999]
[1743518612515,24.35687412,126.58,126.55,89.6018]
[1743518612920,0.03,126.59,126.55,89.6018]
[1743518613725,24.38687412,126.59,126.55,89.6018]
[1743518613917,24.35687412,126.57,126.52,7.9038]
[1743518614117,24.35687412,126.58,126.52,7.9038]
[1743518614822,24.38687412,126.59,126.52,27.6635]
[1743518615030,32.25697412,126.58,126.52,27.6635]
[1743518615236,32.25697412,126.58,126.52,7.9038]
[1743518615927,24.35687412,126.57,126.52,7.9038]
[1743518616115,24.35687412,126.56,126.52,7.9038]
[1743518616928,24.35687412,126.56,126.51,7.9042]
[1743518617124,24.35687412,126.54,126.48,164.5217]
[1743518617329,24.35687412,126.54,126.49,7.9057]
[1743518617622,24.35687412,126.53,126.48,7.9062]
[1743518617837,24.35687412,126.52,126.48,7.9062]
[1743518618138,24.35687412,126.52,126.47,89.6066]
[1743518619225,24.35687412,126.51,126.47,81.6999]
[1743518619440,24.35687412,126.52,126.46,7.9703]
[1743518619818,24.35687412,126.51,126.46,7.9703]
[1743518620142,24.35687412,126.5,126.46,7.9703]
[1743518620322,24.35687412,126.51,126.46,7.9703]
[1743518620742,24.35687412,126.52,126.46,7.9703]
[1743518621441,24.35687412,126.51,126.46,0.063]
[1743518621646,24.35687412,126.52,126.46,0.063]
[1743518622442,24.35687412,126.5,126.46,0.063]
[1743518622943,24.35687412,126.51,126.46,0.063]
[1743518623123,24.35687412,126.52,126.46,0.063]
[1743518623525,24.35687412,126.53,126.46,0.063]
[1743518623730,24.35687412,126.53,126.46,18.71264886]
[1743518623932,24.35687412,126.54,126.46,18.71264886]
[1743518624141,24.35687412,126.53,126.46,81.7629]
[1743518624845,24.35687412,126.51,126.46,0.063]
[1743518625038,24.35687412,126.5,126.46,0.063]
[1743518625441,24.35687412,126.51,126.46,0.063]
[1743518625619,7.9039,126.52,126.46,0.063]
[1743518625824,24.35687412,126.51,126.46,0.063]
[1743518626242,20.0,126.54,126.46,0.063]
[1743518626445,24.35687412,126.53,126.46,18.71264886]
[1743518626953,24.35687412,126.53,126.46,27.09264886]
[1743518627356,24.35687412,126.51,126.47,7.907]
[1743518627920,24.35687412,126.5,126.47,7.907]
[1743518628748,24.35687412,126.51,126.47,7.907]
[1743518628944,24.35687412,126.52,126.47,7.907]
[1743518629938,24.35687412,126.53,126.47,27.6745]
[1743518630643,24.35687412,126.52,126.47,27.6745]
[1743518631037,24.35687412,126.53,126.47,27.6745]
[1743518632155,1.5569,126.57,126.48,26.79741043]
[1743518632361,1.5569,126.57,126.48,244.95514886]
[1743518632362,24.35687412,126.55,126.48,244.95514886]
[1743518632540,24.35687412,126.56,126.48,244.95514886]
[1743518633339,25.91377412,126.57,126.49,27.6701]
[1743518633746,25.91377412,126.57,126.49,67.1989]
[1743518634060,24.35687412,126.56,126.49,27.6701]
[1743518634277,24.35687412,126.56,126.49,36.0501]
[1743518634764,24.35687412,126.55,126.49,36.0501]
[1743518635271,24.35687412,126.53,126.49,7.9057]
[1743518635958,24.35687412,126.54,126.49,27.6701]
[1743518636141,18.12222314,126.57,126.49,27.6701]
[1743518636341,24.35687412,126.55,126.49,27.6701]
[1743518637238,24.35687412,126.54,126.49,27.6701]
[1743518638449,24.35687412,126.55,126.49,27.6701]
[1743518638855,24.38687412,126.56,126.49,27.6701]
[1743518639170,24.35687412,126.55,126.49,27.6701]
[1743518639378,0.03,126.56,126.48,81.6999]
[1743518639379,24.35687412,126.52,126.48,81.6999]
[1743518639569,24.35687412,126.52,126.48,89.6059]
[1743518639879,24.35687412,126.53,126.48,109.3718]
[1743518640047,24.35687412,126.53,126.48,27.6719]
[1743518641068,24.35687412,126.52,126.48,7.906]
[1743518641245,24.35687412,126.5,126.47,7.9067]
[1743518641446,24.35687412,126.5,126.46,7.9703]
[1743518641647,24.35687412,126.5,126.46,0.063]
[1743518641960,24.35687412,126.51,126.46,0.063]
[1743518643063,1.5164,126.5,126.46,0.063]
[1743518643249,24.35687412,126.47,126.46,0.063]
[1743518643654,32.26387412,126.47,126.46,0.063]
[1743518643853,32.54819726,126.47,126.46,0.063]
[1743518644060,38.56559726,126.47,126.46,0.063]
[1743518644278,0.28432314,126.46,126.37,7.9132]
[1743518644457,24.35687412,126.44,126.37,7.9132]
[1743518644849,24.35687412,126.43,126.37,7.9132]
[1743518645040,13.9244,126.47,126.37,27.6963]
[1743518645243,24.35687412,126.44,126.37,109.3962]
[1743518645464,24.35687412,126.43,126.37,89.6131]
[1743518645656,24.64119726,126.42,126.36,6.5427]
[1743518645856,24.35687412,126.4,126.35,7.914]
[1743518646065,0.28432314,126.42,126.35,7.914]
[1743518646362,24.35687412,126.4,126.35,7.914]
[1743518647866,24.35687412,126.39,126.33,27.7667]
[1743518648447,24.35687412,126.4,126.33,27.7667]
[1743518649367,1.6061,126.43,126.34,18.64964886]
[1743518649568,24.35687412,126.42,126.34,100.34954886]
[1743518649758,24.35687412,126.4,126.35,7.9145]
[1743518650459,7.9102,126.42,126.35,7.9145]
[1743518650460,24.35687412,126.39,126.35,7.9145]
[1743518650658,24.35687412,126.38,126.35,7.9145]
[1743518651257,24.35687412,126.37,126.34,7.9148]
[1743518651452,24.35687412,126.38,126.34,7.9148]
[1743518651772,24.35687412,126.38,126.33,7.9787]
[1743518652683,24.35687412,126.37,126.33,7.9787]
[1743518652883,24.35687412,126.36,126.33,7.9787]
[1743518653054,24.35687412,126.35,126.33,0.063]
[1743518653386,24.35687412,126.34,126.33,0.063]
[1743518653882,39.12993588,126.34,126.33,0.063]
[1743518654180,8.38,126.36,126.33,0.063]
[1743518654491,39.12993588,126.35,126.33,0.063]
[1743518654977,47.50993588,126.36,126.33,0.063]
[1743518655158,39.12993588,126.36,126.33,0.063]
[1743518655666,39.12993588,126.35,126.33,0.063]
[1743518656658,39.12993588,126.34,126.33,0.063]
[1743518657587,39.12993588,126.35,126.33,0.063]
[1743518658583,0.28432314,126.34,126.33,0.063]
[1743518658794,39.12993588,126.34,126.33,0.063]
[1743518658986,39.12993588,126.35,126.33,0.063]
[1743518659586,39.41425902,126.36,126.33,0.063]
[1743518660089,1.6664,126.37,126.33,0.063]
[1743518660585,47.32695902,126.38,126.33,0.063]
[1743518660783,8.19702314,126.38,126.33,0.063]
[1743518660990,39.41425902,126.38,126.33,0.063]
[1743518661174,0.28432314,126.38,126.33,0.063]
[1743518661369,7.9122,126.39,126.33,0.063]
[1743518661370,39.12993588,126.39,126.33,0.063]
[1743518662891,47.04213588,126.39,126.33,7.9787]
[1743518663070,39.12993588,126.37,126.33,7.9787]
[1743518663273,39.12993588,126.36,126.33,7.9787]
[1743518663908,39.12993588,126.36,126.33,0.063]
[1743518665393,0.28432314,126.36,126.33,0.063]
[1743518665593,39.12993588,126.38,126.33,0.063]
[1743518665887,0.28432314,126.38,126.33,0.063]
[1743518666074,39.41425902,126.38,126.33,0.063]
[1743518666275,39.12993588,126.37,126.33,0.063]
[1743518666589,39.12993588,126.36,126.33,0.063]
[1743518670672,39.12993588,126.35,126.33,0.063]
[1743518671077,47.04383588,126.36,126.33,0.063]
[1743518671289,39.12993588,126.36,126.33,0.063]
[1743518673685,18.64964886,126.4,126.33,0.063]
[1743518673898,39.12993588,126.39,126.33,0.063]
[1743518675368,39.12993588,126.38,126.33,0.063]
[1743518675570,0.28432314,126.4,126.33,0.063]
[1743518675770,39.12993588,126.39,126.33,0.063]
[1743518676074,24.43573262,126.39,126.33,0.063]
[1743518676284,24.43573262,126.38,126.33,0.063]
[1743518676595,8.19592314,126.4,126.33,0.063]
[1743518676596,24.43573262,126.36,126.33,0.063]
[1743518677994,24.43573262,126.35,126.33,0.063]
[1743518679489,24.43573262,126.36,126.33,0.063]
[1743518680487,0.28432314,126.37,126.33,0.063]
[1743518680696,0.28432314,126.36,126.33,0.063]
[1743518680889,24.72005576,126.36,126.33,0.063]
[1743518681270,0.14216157,126.38,126.33,0.063]
[1743518681585,24.72005576,126.38,126.33,0.063]
[1743518683596,24.43573262,126.37,126.33,0.063]
[1743518683975,24.72005576,126.38,126.33,0.063]
[1743518684494,44.72005576,126.38,126.33,0.063]
[1743518684792,24.43573262,126.37,126.33,0.063]
[1743518685269,24.43573262,126.36,126.33,0.063]
[1743518686290,24.43573262,126.35,126.33,0.063]
[1743518686696,24.72005576,126.36,126.33,0.063]
[1743518687672,24.43573262,126.35,126.33,0.063]
[1743518688803,24.72005576,126.36,126.33,0.063]
[1743518689897,0.28432314,126.36,126.33,0.063]
[1743518690194,24.72005576,126.36,126.33,0.063]
[1743518695190,32.63395576,126.36,126.33,0.063]
[1743518695400,24.43573262,126.34,126.33,0.063]
[1743518697098,32.63515576,126.34,126.33,0.063]
[1743518698099,24.43573262,126.35,126.33,0.063]
[1743518698277,0.28432314,126.35,126.33,0.063]
[1743518698911,24.72005576,126.35,126.33,0.063]
[1743518702194,24.72005576,126.37,126.33,0.063]
[1743518702395,7.9125,126.39,126.33,0.063]
[1743518702595,24.43573262,126.38,126.33,0.063]
[1743518702801,24.72005576,126.39,126.33,0.063]
[1743518703193,24.72005576,126.39,126.33,7.9787]
[1743518703588,24.43573262,126.38,126.33,7.9787]
[1743518704221,0.14216157,126.39,126.33,7.9787]
[1743518704512,24.43573262,126.42,126.34,27.00964886]
[1743518704816,12.09483481,126.44,126.38,18.64964886]
[1743518705184,12.09483481,126.44,126.39,27.692]
[1743518705392,36.53056743,126.44,126.39,7.912]
[1743518705799,24.43573262,126.43,126.39,7.912]
[1743518706217,24.43573262,126.42,126.39,7.912]
[1743518706394,24.43573262,126.43,126.39,7.912]
[1743518707094,24.43573262,126.43,126.38,7.9126]
[1743518707403,24.43573262,126.41,126.37,13.9328]
[1743518707606,7.9095,126.43,126.35,21.3142]
[1743518707611,24.43573262,126.4,126.36,7.9138]
[1743518707808,0.28432314,126.41,126.36,7.9138]
[1743518707998,24.72005576,126.41,126.36,7.9138]
[1743518708933,24.43573262,126.4,126.36,7.9138]
[1743518709115,24.43573262,126.38,126.33,0.063]
[1743518709407,24.43573262,126.36,126.33,0.063]
[1743518709717,24.43573262,126.37,126.33,0.063]
[1743518710098,24.72005576,126.38,126.33,0.063]
[1743518710412,0.28432314,126.44,126.36,18.64964886]
[1743518710592,24.72005576,126.44,126.36,18.64964886]
[1743518711299,24.72005576,126.44,126.37,27.6963]
[1743518711595,24.43573262,126.41,126.37,7.9132]
[1743518711998,24.43573262,126.4,126.37,7.9132]
[1743518712299,24.43573262,126.4,126.36,7.9137]
[1743518716010,24.43573262,126.39,126.35,7.9145]
[1743518716215,24.43573262,126.38,126.35,7.9145]
[1743518716919,24.43573262,126.4,126.35,7.9145]
[1743518717107,24.43573262,126.4,126.35,27.7008]
[1743518717307,24.43573262,126.4,126.35,19.7863]
[1743518717717,1.91842314,126.41,126.35,19.7863]
[1743518718013,24.43573262,126.41,126.35,19.7863]
[1743518718197,24.43573262,126.4,126.34,7.9151]
[1743518718403,24.43573262,126.39,126.34,7.9151]
[1743518719919,24.43573262,126.37,126.34,7.9151]
[1743518720499,24.72005576,126.38,126.34,7.9151]
[1743518720998,24.72005576,126.38,126.33,7.9787]
[1743518721199,32.63285576,126.38,126.33,7.9787]
[1743518721517,24.43573262,126.38,126.33,7.9787]
[1743518722020,32.34843262,126.38,126.33,7.9787]
[1743518722204,24.43573262,126.36,126.33,0.063]
[1743518722399,0.28432314,126.37,126.33,0.063]
[1743518722400,24.43573262,126.35,126.33,0.063]
[1743518722721,24.43573262,126.34,126.33,0.063]
[1743518722899,24.72005576,126.34,126.33,0.063]
[1743518723302,32.63515576,126.34,126.33,0.063]
[1743518724027,24.72005576,126.34,126.33,0.063]
[1743518724520,32.63515576,126.34,126.33,0.063]
[1743518724706,24.72005576,126.34,126.33,0.063]
[1743518725103,7.9147,126.35,126.33,0.063]
[1743518725313,44.43573262,126.34,126.33,0.063]
[1743518725626,44.72005576,126.34,126.33,0.063]
[1743518726510,63.36970462,126.34,126.33,0.063]
[1743518727232,79.16696868,126.34,126.33,0.063]
[1743518728422,18.933972,126.33,126.31,0.063]
[1743518728608,51.72970462,126.32,126.31,0.063]
[1743518729219,59.64610462,126.32,126.31,0.063]
[1743518729810,84.08183724,126.32,126.31,0.063]
[1743518730825,20.28432314,126.28,126.23,14.4305]
[1743518731023,1.5091,126.34,126.23,34.2356]
[1743518731209,20.0,126.3,126.23,34.2356]
[1743518731406,24.72005576,126.32,126.24,18.64964886]
[1743518731607,24.43573262,126.31,126.23,34.2356]
[1743518732027,24.43573262,126.3,126.23,34.2356]
[1743518732612,24.43573262,126.29,126.23,34.2356]
[1743518733428,44.72005576,126.28,126.23,14.4305]
[1743518733620,20.28432314,126.28,126.23,14.4305]
[1743518734231,24.43573262,126.3,126.23,34.2356]
[1743518734428,24.43573262,126.32,126.24,18.64964886]
[1743518734821,24.43573262,126.31,126.23,34.2356]
[1743518735210,24.43573262,126.32,126.24,18.64964886]
[1743518735726,20.0,126.31,126.25,27.7226]
[1743518736319,44.43573262,126.31,126.25,27.7226]
[1743518736624,24.43573262,126.29,126.25,7.9207]
[1743518737537,32.35413262,126.29,126.24,7.9841]
[1743518737715,32.63785576,126.3,126.24,7.9841]
[1743518737916,32.63775576,126.3,126.24,7.9841]
[1743518738245,24.43573262,126.28,126.24,0.063]
[1743518738421,0.14216157,126.26,126.24,0.063]
[1743518740415,24.57789419,126.28,126.24,0.063]
[1743518740617,0.28432314,126.29,126.24,0.063]
[1743518741731,32.63825576,126.29,126.24,0.063]
[1743518742240,24.72005576,126.29,126.24,0.063]
[1743518743038,32.63855576,126.29,126.24,0.063]
[1743518743332,24.72005576,126.29,126.24,0.063]
[1743518743523,0.14216157,126.29,126.24,0.063]
[1743518744131,0.14216157,126.3,126.24,0.063]
[1743518744840,0.28432314,126.3,126.24,0.063]
[1743518745133,24.72005576,126.3,126.24,0.063]
[1743518745331,32.63785576,126.3,126.24,0.063]
[1743518745535,0.14216157,126.28,126.24,0.063]
[1743518745720,24.57789419,126.28,126.24,0.063]
[1743518745915,32.49679419,126.28,126.24,0.063]
[1743518746124,0.14216157,126.26,126.24,0.063]
[1743518746451,24.57789419,126.26,126.24,0.063]
[1743518747518,24.57789419,126.25,126.24,0.063]
[1743518747815,0.14216157,126.25,126.24,0.063]
[1743518748523,0.14216157,126.27,126.24,0.063]
[1743518748724,0.28432314,126.27,126.24,0.063]
[1743518752230,24.72005576,126.27,126.24,0.063]